Cogmind - Beta 16.1 @@@ ROGUE MODE // 2026.02.20 @ 00:10:09 Player: Megaknight51 Result: Smashed by cave-in Performance ------------- Evolutions (0) 0 Regions Visited (1) 200 Robots Destroyed (27) 135 Value Destroyed (433) 433 Prototype IDs (0) 0 Alien Tech Used (0) 0 Bonus (0) 0 TOTAL SCORE: 768 Bonus ------- None Cogmind --------- Core Integrity 0/250 Matter 209/300 Energy 100/100 System Corruption 14% Temperature Cool (0) Movement Rolling (140) Ox4 Location -10/Materials Parts ------- > --- POWER (1) -------- (None) > --- PROPULSION (2) --- Wheel > --- UTILITY (2) ------ High-capacity Storage Unit > --- WEAPON (2) ------- Improved Light Cannon Improved Light Cannon > --- INVENTORY (20) --- Light Ion Engine Compact Wheel VTOL Module VTOL Module VTOL Module VTOL Module Large Storage Unit Structural Scanner Improved Terrain Scanner Light Armor Plating Shield Generator Hacking Suite Improved Light Cannon EMP Blaster EMP Blaster Rocket Launcher Rocket Launcher Hammer Peak State ------------ > --- POWER ------------ Light Ion Engine > --- PROPULSION ------- Wheel Compact Wheel > --- UTILITY ---------- Large Storage Unit Seismic Detector > --- WEAPON ----------- Improved Light Cannon Rocket Launcher > --- INVENTORY -------- Ion Engine Compact Wheel Compact Wheel VTOL Module VTOL Module Structural Scanner Improved Terrain Scanner Light Armor Plating Shield Generator Improved Light Cannon Improved Light Cannon EMP Blaster EMP Blaster Rocket Launcher Hammer [Rating: 11] Favorites ----------- Power Light Ion Engine Engine Light Ion Engine Propulsion Wheel Wheel Wheel Utility Seismic Detector Device Seismic Detector Storage Large Storage Unit Weapon Improved Light Cannon Ballistic Gun Assault Rifle Ballistic Cannon Improved Light Cannon Launcher Rocket Launcher Special Weapon Mining Laser Impact Weapon Hammer Build | -11 -10 ------- Run | Yrd Mat Slots Evolved . | . . Power . | . . Propulsion . | . . Utility . | . . Weapon . | . . Parts Attached 19 | 7 12 Power 2 | 1 1 Engine 2 | 1 1 Core . | . . Reactor . | . . Propulsion 3 | 2 1 Treads . | . . Leg . | . . Wheel 3 | 2 1 Hover . | . . Flight . | . . Utility 6 | 2 4 Device 2 | 1 1 Storage 4 | 1 3 Processor . | . . Hackware . | . . Protection . | . . Artifact . | . . Weapon 8 | 2 6 Energy Gun . | . . Energy Cannon . | . . Ballistic Gun 2 | 2 . Ballistic Cannon 2 | . 2 Launcher 2 | . 2 Special Weapon 1 | . 1 Impact Weapon 1 | . 1 Slashing Weapon . | . . Piercing Weapon . | . . Special Melee Weapon . | . . Unidentified Prototypes . | . . Parts Lost 5 | . 5 Power 2 | . 2 Propulsion 2 | . 2 Utility 1 | . 1 Weapon . | . . Highest Loss Streak 3 | . 3 To Critical Strikes . | . . Average Backups 12 | 3 13 Power . | . . Propulsion 3 | . 3 Utility 3 | . 3 Weapon 4 | 1 4 Tool/Special . | . . Unused Backups 21 | . 21 Power 1 | . 1 Propulsion 7 | . 7 Utility 6 | . 6 Weapon 7 | . 7 Tool/Special . | . . Average Slot Usage (%) 96 | . 96 Engine 14 | . 14 Wheel 28 | . 28 Device 10 | . 10 Storage 14 | . 14 Ballistic Gun 10 | . 10 Ballistic Cannon 10 | . 10 Special Weapon 2 | . 2 Impact Weapon 4 | . 4 Peak Build Rating 11 | 7 11 Average Rating 8 | 6 9 On Entrance 3 | . 7 Avg Prop Armor Cover (%) . | . . Naked Turns . | . . Heaviest Build 53 | 12 53 Greatest Support 26 | 26 26 Greatest Overweight (x) 2 | . 2 Average Overweight (x) . | . . Largest Inventory Capacity 20 | 8 20 Average Capacity 13 | 7 14 Most Carried 19 | 7 19 Average Carried 12 | 3 13 Final Capacity 20 | 8 20 Final Carried 18 | 7 18 Class Distribution -------------------- 100% | Mutant Dominant Class ---------------- Mutant | -10/Materials Resources | -11 -10 ----------- Run | Yrd Mat Matter Collected 620 | 326 294 Remotely . | . . Salvage Created 553 | 151 402 Parts 45 | 11 34 Haulers Intercepted 1 | . 1 Recyclers Shooed . | . . Parts Field Recycled . | . . Retrieved Matter . | . . Parts Self-Destructed . | . . Prevented . | . . Parts Restored . | . . Kills | -11 -10 ------- Run | Yrd Mat Combat Hostiles Destroyed 15 | . 15 Guns 3 | . 3 Cannons 7 | . 7 AOE 5 | . 5 Classes Destroyed 9 | 3 6 Worker 1 | 1 . Builder 1 | . 1 Tunneler 4 | 3 1 Hauler 1 | . 1 Recycler 1 | 1 . Operator 1 | . 1 Watcher 3 | . 3 Swarmer 9 | . 9 Grunt 6 | . 6 Best Kill Streak 7 | 2 7 Combat Bots Only 7 | . 7 Max Kills in Single Turn 4 | 1 4 Gunslinging . | . . Exploded 3 | . 3 Melee . | . . Uniques/NPCs Destroyed . | . . Combat | -11 -10 -------- Run | Yrd Mat Hostile Shots Fired 49 | . 49 Missed 11 | . 11 Hits 38 | . 38 Projectile 38 | . 38 Critical Strikes 1 | . 1 Damage Taken 931 | . 931 Core 299 | . 299 Absorbed by Shields . | . . Core Remaining (%) 100 | 100 . Volleys Fired 51 | 14 37 Largest 2 | 2 2 Hottest 100 | 40 100 Shots Fired 97 | 28 69 Gun 44 | 28 16 Cannon 46 | . 46 Launcher 4 | . 4 Special 3 | . 3 Kinetic 90 | 28 62 Thermal 3 | . 3 Explosive 4 | . 4 Electromagnetic . | . . Robot Hit Streak 9 | 9 7 Robot Miss Streak 2 | 1 2 Penetration Max . | . . Secondary Targets 2 | . 2 Max Gunslinging Chain 1 | . 1 Shots Hit Robots 46 | 20 26 Core Hits 33 | 8 25 Critical Kills . | . . Critical Parts Destroyed . | . . Critical Strikes . | . . Melee Attacks 6 | . 6 Impact 6 | . 6 Slashing . | . . Piercing . | . . Sneak Attacks 1 | . 1 Combat Hostiles . | . . Follow-up Attacks . | . . Damage Inflicted 1062 | 180 882 Guns 270 | 180 90 Cannons 363 | . 363 Explosions 392 | . 392 Melee 37 | . 37 Ramming . | . . Kinetic 633 | 180 453 Thermal . | . . Explosive 392 | . 392 Electromagnetic . | . . Impact 37 | . 37 Slashing . | . . Piercing . | . . Highest Corruption 5 | . 5 Average Corruption 5 | . 5 Corruption Purged . | . . Corruption Blocked . | . . Overload Shots . | . . Overflow Damage 14 | . 14 Projectiles 11 | . 11 Explosions 3 | . 3 Melee . | . . Knockbacks 2 | . 2 Impact . | . . Kinetic 2 | . 2 Secondary . | . . Self-Inflicted Damage 105 | . 105 Shots 3 | . 3 Rammed . | . . Targets Rammed . | . . Kicked . | . . Crushed . | . . Highest Temperature 24 | . 24 Average Temperature 9 | . 9 Received Heat Transfer 54 | . 54 Siege Activations . | . . Martial Activations . | . . Shielding Activations . | . . Robots Disrupted . | . . Combat Hostiles . | . . Robots Corrupted . | . . Combat Hostiles . | . . Parts Fried . | . . Impact Corruptions . | . . Robots Melted . | . . Combat Hostiles . | . . Parts Melted . | . . Heat Transferred . | . . Parts Sabotaged . | . . Parts Stolen . | . . Parts Stripped . | . . Power Chain Reactions . | . . Alert | -11 -10 ------- Run | Yrd Mat Maximum Alert Level 1 | . 1 Low Security (%) 79 | 100 77 Level 1 20 | . 22 Level 2 . | . . Level 3 . | . . Level 4 . | . . Level 5 . | . . High Security . | . . Max Security . | . . Peak Influence 381 | 10 381 Initial . | . . Average 85 | 2 93 Influence Increases 598 | 25 573 Destroy 0b10 Robot/C 300 | . 300 Destroy 0b10 Robot/NC 60 | 25 35 Destroy Leader 68 | . 68 Successful Hack 26 | . 26 Disable Machine 30 | . 30 Destroy Structure 39 | . 39 Lose Combat Pursuer 75 | . 75 Influence Decreases 303 | 25 278 Time Decay 253 | 25 228 Lost Part 50 | . 50 Squads Dispatched 2 | . 2 Investigation 1 | . 1 Extermination . | . . Reinforcement 1 | . 1 Assault . | . . Garrison . | . . Intercept . | . . Searches Triggered . | . . Construction Impeded . | . . Haulers Reinforced . | . . Active Scanning Responses . | . . Cargo Convoy Interrupts . | . . Stealth | -11 -10 --------- Run | Yrd Mat Distress Signals 2 | . 2 Communications Jammed . | . . Distress Signals . | . . Times Spotted 21 | . 21 Peak Tracking Total 5 | . 5 Tactical Retreats 3 | . 3 Traps | -11 -10 ------- Run | Yrd Mat Traps Triggered 1 | . 1 Indirectly . | . . Trap Hack Attempts . | . . Triggered . | . . Disarmed . | . . Reprogrammed . | . . Reused . | . . Traps Extracted . | . . Installed . | . . Triggered . | . . Machines | -11 -10 ---------- Run | Yrd Mat Machines Disabled 2 | . 2 Max in Single Turn 1 | . 1 Machines Repaired . | . . Machines Dismantled . | . . Machines Sabotaged . | . . Overloaded Fab Kills . | . . Hacking | -11 -10 --------- Run | Yrd Mat Machines Accessed 6 | . 6 Terminals 6 | . 6 Fabricators . | . . Repair Stations . | . . Recycling Units . | . . Scanalyzers . | . . Garrison Access . | . . Total Hacks 18 | . 18 Successful 10 | . 10 Failed 8 | . 8 Catastrophic . | . . Database Lockouts . | . . Manual 17 | . 17 Terminals 18 | . 18 Fabricators . | . . Repair Stations . | . . Recycling Units . | . . Scanalyzers . | . . Garrison Access . | . . Terminal Hacks 4 | . 4 Part Schematic 1 | . 1 Robot Analysis 2 | . 2 Registered Components 1 | . 1 Fabricator Hacks . | . . Repair Station Hacks . | . . Recycling Unit Hacks . | . . Scanalyzer . | . . Garrison Access Hacks . | . . Unauthorized Hacks 6 | . 6 Terminals 6 | . 6 Assimilate 1 | . 1 Botnet 4 | . 4 Operators 1 | . 1 Fabricators . | . . Repair Stations . | . . Recycling Units . | . . Scanalyzers . | . . Garrison Access . | . . Data Cores Recovered . | . . Used . | . . Hacking Detections 6 | . 6 Full Trace Events . | . . Feedback Events . | . . Feedback Blocked . | . . Robot Schematics Acquired . | . . Robots Built . | . . Authchips . | . . Time . | . . Total Robot Build Rating . | . . Part Schematics Acquired 1 | . 1 Parts Built . | . . Authchips . | . . Time . | . . Total Part Build Rating . | . . Part Studies Acquired . | . . Parts Repaired . | . . Time . | . . Parts Recycled . | . . Recycled Matter . | . . Retrieved Matter . | . . Retrieved Components . | . . Parts Scanalyzed . | . . Part Schematics Acquired . | . . Parts Damaged . | . . Bothacking | -11 -10 ------------ Run | Yrd Mat Used RIF Installer . | . . Robots Hacked . | . . Non-combat . | . . Combat . | . . Robot Hacks Applied . | . . Relay Couplers Released . | . . Fabnet Peak Effective % . | . . Robots Rewired . | . . Allies Hacked . | . . Hacks Repelled . | . . Allies | -11 -10 -------- Run | Yrd Mat Total Allies . | . . Largest Group . | . . Highest-Rated Group . | . . Highest-Rated Ally . | . . Total Orders . | . . Ally Attacks . | . . Total Damage . | . . Kills . | . . Allies Corrupted . | . . Allies Melted . | . . Intel | -11 -10 ------- Run | Yrd Mat Active Infowar (turns) 1020 | 81 939 Structural 19 | . 19 Seismic 1001 | 81 920 Robot Analysis Total 2 | . 2 Derelict Logs Recovered . | . . Drone Launches . | . . Drone Recoveries . | . . Exploration | -11 -10 ------------- Run | Yrd Mat Turns Passed 1330 | 127 1203 Spaces Moved 923 | 81 842 Core 4 | 4 . Treads . | . . Legs . | . . Wheels 919 | 77 842 Hover . | . . Flight . | . . Fastest Speed 50 | 50 90 Average Speed 102 | 87 103 Slowest Speed 120 | 90 120 Overloaded Moves . | . . Propulsion Burnouts . | . . Robots Hopped . | . . Potential Cave-ins 3 | . 3 Cave-ins Triggered 2 | . 2 Exploration Rate (%) 49 | 3 96 Regions Visited 1 Branch Regions . Pre-discovered Areas . | . . Known Exits Taken . | . . Unknown Exits Taken 1 | 1 . Scrap Searched . | . . Spaces Dug 13 | . 13 Terrain Destroyed 37 | . 37 Melee 3 | . 3 Projectile 9 | . 9 AOE 25 | . 25 Terrain Rammed . | . . Walls Destroyed . | . . Machines Disabled . | . . Actions | -11 -10 --------- Run | Yrd Mat Total 1196 | 108 1088 Wait 156 | . 156 Move 921 | 80 841 Hop . | . . Pick Up 28 | 7 21 Fast Attach 8 | 7 1 Attach 2 | . 2 Detach 1 | . 1 Swap 12 | . 12 Drop 11 | . 11 Fire 51 | 14 37 Melee 6 | . 6 Ram . | . . Kick . | . . Crush . | . . Escape Stasis . | . . Rewire . | . . Trap . | . . Miscellaneous . | . . Route ------- -11/Scrapyard -10/Materials (discovered 5 exits: [*Mat x3] / [*Min] / [*Sub]) History --------- Turn | Location | Event 7 | -11/Scrapyard | Discovered new exit (range 16) 128 | -11/Scrapyard | Entered Materials 316 | -10/Materials | Build established: Mutant 495 | -10/Materials | Discovered new exit (range 12) 703 | -10/Materials | Discovered new exit (range 3) 1036 | -10/Materials | Discovered new exit (range 6) 1101 | -10/Materials | Destroyed 7 combat bots 1115 | -10/Materials | Discovered new exit (range 13) 1291 | -10/Materials | Discovered new exit (range 9) 1323 | -10/Materials | Crushed by falling debris 1323 | -10/Materials | Core integrity fell below 50% 1323 | -10/Materials | Core integrity fell below 20% 1331 | -10/Materials | Crushed by falling debris 1331 | -10/Materials | Smashed by cave-in Last Messages --------------- 01173_ K-01 Serf collects debris. 01186_ U-05 Engineer builds a Door. 01200_ U-05 Engineer builds a Wall. 01203_ K-01 Serf collects debris. 01206_ T-07 Excavator knocked back. 01209_ T-07 Excavator destroyed. 01213_ Acquired 13 matter. 01219_ Acquired 2 matter. 01255_ Acquired VTOL Module. 01291_ EXIT=FOUND 01323_ The unstable cave ceiling collapses. 01323_ Crushed by falling debris. 01323_ Com. Wheel destroyed. 01323_ System corrupted by crushing effect (+5). 01331_ The unstable cave ceiling collapses. 01331_ Crushed by falling debris. 01331_ Com. Wheel destroyed. 01331_ System corrupted by crushing effect (+5). 01331_ Ion Engine destroyed. 01331_ System corrupted by crushing effect (+4). Map ----- +----------------------------------------------------+ | | | | | | | | | | | | | | | | | | | ?????????????????????????????????????????????????? | | ?????????????????????????????????????????????????? | | ?????????????????????????????????????????????????? | | ?????????????????????????????????????????????????? | | ????????????????????????????????????#####????????? | | ????????????????????????????????????# ########## | | ????????????????????????????????????# < # # | | ?????????####??##########???????????# # """# | | ????????##"""### #????######## # """# | | ???????##"|||"## #????# # # """# | | ???????#"" ""# #??### # # = # | | ???????# # #??# #^^ # """# | | ???????# < # #??# # # """# | | ????#??# # #??# # # """# | | ????# ?# ?# #### # # # | | ????# ?# ?# # #< k + ###+###### | | ????# ### % #?# #@ # # | | ????# #######+################ | | ????# =* | | | ????# % [[[ %########## ######### | | ????# [!%!! #????????# #???????? | | ????# ####%#[###### ##+#####??????# #???????? | | ????#?????# ###????# # #??????# #???????? | | ?????#??### ##?????# + """#??????# #???????? | | ?????# ## # ####??# # """#??????# #???????? | | ?????# # #??# # """#??????# #???????? | | ?????# = #??##+##! #??????# #???????? | | ?????# # =% #??????# #??????# #???????? | | ?????# #??????######+#??????# #???????? | | ?????# # #???????????# #??????# #???????? | | ?????# ! #???????????# #??????# #???????? | | ?????+ # [%=!! ###########?# #??????# #????#### | | ?????### % ! # #?# #??????# #????#[[] | | ??!????# % # #?# #??????# ?????#] ] | | ???????#####+#### #?# #?????## #????#[ ] | | ???????# =# #?# #?????# ##### | | ???????# < += #?# #####?# | | ???????# *#% ### ## !### " ^ | | ??###### # %# ## !## | | ??# # =# ## ! ## ###+#### | | ??# # *############ !######## # | +----------------------------------------------------+ Best States ------------- Heat Dissipation 25 Energy Generation 10 Energy Capacity 250 Matter Stores 300 Matter Capacity 300 Sight Range 16 Terrain Scan Density 10 Evasion (%) 44 Item Schematics ----------------- Cargo Storage Unit | -10/Materials | Hacked Robot Schematics ------------------ None Fabricated ------------ Nothing Repaired ---------- Nothing Studied --------- None Alien Tech Used ----------------- None Achievements -------------- None Challenges ------------ None Game ------ Seed SingularityMetaCanceller Manual? 0 Play Time 00:10:59 Cumulative 93.0 hours Start 2026.02.20 @ 00:01:34 End 2026.02.20 @ 00:10:09 Sessions 1 Manual Loads 0 Difficulty Rogue Special Mode None Game No. 193 Rogue 193 Adventurer 0 Explorer 0 Win Type - Total 2 Types 1/0/0/1/0/0/0/0/0/0 Lore% 51 Gallery% 39 Achievement% 39 Wizard Run 0 Options --------- Layout 0 ASCII 0 Keyboard 1 Movement Arrows Keybinds 0 Fullscreen 1 Font 18/Smallcaps Map View 76x50 Zoom Use 20% Tactical HUD 1 Map Filters NONE Filters NONE Steam 1 RUN: 1a4f3962-452e-4d55-afe4-1b710248e28c